bitfinex-derivatives/quotes_SOLF0:USTF0_20251020
["timestamp","ask_amount","ask_price","bid_price","bid_amount"]
[1760920205714,13.10599919,184.49,184.36,2.83]
[1760920206108,2.84,184.48,184.35,112.54216918]
[1760920206411,8.22919919,184.49,184.35,112.54216918]
[1760920206608,2.84,184.48,184.37,4.8797]
[1760920206913,2.84,184.48,184.35,107.66196918]
[1760920207113,5.38919919,184.45,184.35,107.66196918]
[1760920207319,5.38919919,184.43,184.29,2.83]
[1760920207607,2.84,184.48,184.11,140.36]
[1760920207608,5.38919919,184.39,184.22,2.83]
[1760920208011,5.38919919,184.39,184.23,4.8836]
[1760920208207,5.38919919,184.39,184.24,2.83]
[1760920208412,2.84,184.38,184.24,2.83]
[1760920208608,5.38919919,184.43,184.27,2.83]
[1760920208809,2.84,184.42,184.27,2.83]
[1760920209012,2.84,184.42,184.27,17.89]
[1760920209212,2.84,184.38,184.27,2.83]
[1760920209612,2.84,184.37,184.25,4.8828]
[1760920209912,5.38919919,184.34,184.22,2.83]
[1760920210214,2.84,184.33,184.12,2.68]
[1760920210509,2.84,184.3,184.18,7.7148]
[1760920210907,2.84,184.3,184.14,4.8858]
[1760920211108,2.84,184.26,184.14,4.8858]
[1760920211305,2.84,184.26,184.13,2.83]
[1760920211713,77.48648045,184.35,184.07,2.83]
[1760920211714,5.38919919,184.23,184.07,2.83]
[1760920211905,2.84,184.22,184.07,2.83]
[1760920212105,2.84,184.22,184.08,4.8873]
[1760920212313,8.23919919,184.22,184.07,2.83]
[1760920212704,8.23919919,184.22,184.07,7.7176]
[1760920212910,2.85,184.12,183.95,2.9]
[1760920213109,2.85,184.12,183.96,2.9]
[1760920213308,2.85,184.12,184.01,7.7891]
[1760920213706,2.85,184.12,183.98,4.8902]
[1760920213912,7.7365,184.12,183.96,2.9]
[1760920214113,2.85,184.12,183.96,2.9]
[1760920214314,2.85,184.07,183.93,4.8913]
[1760920214618,2.85,184.07,183.91,2.7913]
[1760920214808,9.78052909,184.26,183.85,15.06]
[1760920214809,2.85,184.13,183.96,5.38919919]
[1760920215013,2.85,184.13,183.83,86.86284494]
[1760920215014,2.85,184.13,183.95,4.64]
[1760920215319,2.85,184.13,184.03,4.8886]
[1760920215719,2.85,184.18,184.06,4.888]
[1760920216817,2.85,184.18,184.06,7.788]
[1760920217421,2.85,184.18,184.08,4.8873]
[1760920218323,2.85,184.18,184.06,2.9]
[1760920219121,5.38919919,184.2,184.01,7.5593]
[1760920219527,2.79,184.16,184.01,7.5593]
[1760920220824,2.79,184.16,184.01,2.67]
[1760920221132,8.17919919,184.16,184.01,2.67]
[1760920221725,10.52,184.22,183.96,2.67]
[1760920221726,2.79,184.11,183.96,2.67]
[1760920223125,75.9421,184.3,183.89,47.06]
[1760920223126,2.79,184.15,184.0,2.67]
[1760920223527,8.17919919,184.15,184.0,2.67]
[1760920223729,2.79,184.14,183.95,2.67]
[1760920224234,2.79,184.11,183.95,2.67]
[1760920224523,2.79,184.11,183.99,4.8898]
[1760920224927,2.79,184.11,183.98,2.67]
[1760920225127,8.17919919,184.11,183.98,2.67]
[1760920225328,2.79,184.09,183.95,4.8909]
[1760920226125,7.6774,184.09,183.95,4.8909]
[1760920226326,2.79,184.08,183.94,2.67]
[1760920226934,4.888,184.07,183.94,2.67]
[1760920227834,4.8884,184.05,183.94,2.67]
[1760920228030,2.79,184.06,183.94,2.67]
[1760920228439,2.79,184.06,183.94,7.5612]
[1760920229129,2.79,184.06,183.94,2.67]
[1760920230738,7.6782,184.06,183.94,2.67]
[1760920231240,2.79,184.03,183.9,7.5621]
[1760920231738,2.79,184.03,183.9,2.67]
[1760920233332,9.7697,184.19,183.83,14.06]
[1760920233333,2.79,184.07,183.92,2.67]
[1760920233532,2.79,184.07,183.95,4.8908]
[1760920233837,2.79,184.07,183.95,7.5608]
[1760920234131,2.79,184.07,183.97,4.8904]
[1760920234338,2.79,184.07,183.95,2.67]
[1760920234531,2.79,184.07,183.96,4.8907]
[1760920234734,2.79,184.07,183.95,2.67]
[1760920235332,14.16,184.14,183.92,4.8917]
[1760920235333,8.91101842,184.11,183.92,4.8917]
[1760920235540,2.79,184.1,183.92,4.8917]
[1760920235932,7.6787,184.04,183.93,2.67]
[1760920237132,7.6787,184.04,183.94,4.8911]
[1760920237436,2.79,184.04,183.93,2.67]
[1760920237637,2.79,184.04,183.96,4.8907]
[1760920238532,2.79,184.04,183.93,7.5613]
[1760920238737,2.79,184.1,183.87,2.67]
[1760920238935,8.91101842,184.11,183.9,8.91101842]
[1760920239234,4.8884,184.05,183.95,4.8908]
[1760920239936,2.79,184.06,183.95,4.8908]
[1760920240942,7.6781,184.06,183.95,4.8908]
[1760920241835,2.79,184.06,183.94,2.67]
[1760920242035,2.79,184.11,183.95,2.67]
[1760920242236,2.79,184.11,184.03,4.8888]
[1760920242543,2.79,184.11,184.01,2.67]
[1760920243433,2.79,184.17,184.01,2.67]
[1760920243638,4.8855,184.16,184.05,7.5583]
[1760920243841,4.8855,184.16,184.05,2.67]
[1760920244035,2.79,184.17,184.05,2.67]
[1760920244235,2.79,184.17,184.09,4.8873]
[1760920244435,2.79,184.17,184.05,2.67]
[1760920244836,2.79,184.12,184.01,2.67]
[1760920245138,2.79,184.14,183.97,2.67]
[1760920245334,2.79,184.08,183.97,2.67]
[1760920245539,4.8873,184.09,183.97,2.67]
[1760920245835,2.79,184.07,183.97,7.5605]
[1760920246236,4.8881,184.06,183.97,2.67]
[1760920246743,2.79,184.13,183.97,2.67]
[1760920246938,4.8867,184.11,183.99,4.8897]
[1760920247144,4.8867,184.11,183.97,2.67]
[1760920247344,7.6279,184.07,183.97,2.67]
[1760920247737,4.00767012,184.06,183.97,2.67]
[1760920247939,4.8883,184.05,183.97,2.67]
[1760920248136,2.74,184.05,183.92,2.9]
[1760920248435,2.74,184.03,183.92,2.9]
[1760920249036,2.74,184.01,183.83,2.9]
[1760920249438,4.00747316,184.0,183.83,2.9]
[1760920249841,4.00747316,184.0,183.88,4.8928]
[1760920250043,7.6296,184.01,183.87,2.9]
[1760920250044,6.74747316,183.99,183.87,2.9]
[1760920250343,4.00747316,183.98,183.89,4.8925]
[1760920250546,4.00747316,183.97,183.89,4.8925]
[1760920250743,4.00747316,183.96,183.89,4.8925]
[1760920250944,4.00747316,183.98,183.89,4.8925]
[1760920251145,4.00747316,183.97,183.89,4.8925]
[1760920251442,4.00747316,183.96,183.89,4.8925]
[1760920251639,2.74,183.99,183.89,4.8925]
[1760920251844,4.03259768,183.98,183.89,4.8925]
[1760920252043,4.03259768,183.97,183.91,4.892]
[1760920252346,4.8888,184.04,183.85,2.9]
[1760920252347,4.03312469,183.96,183.85,2.9]
[1760920252548,4.7254946,184.01,183.85,2.9]
[1760920252741,4.04080927,184.0,183.85,2.9]
[1760920252941,4.04080927,183.99,183.91,7.792]
[1760920253143,4.04080927,183.98,183.91,7.792]
[1760920253345,4.04627539,183.97,183.94,2.9]
[1760920253646,4.7254946,184.01,183.89,2.9]
[1760920253843,4.7254946,184.02,183.89,2.9]
[1760920254147,4.7254946,184.02,183.93,4.8915]
[1760920254348,4.7254946,184.01,183.93,4.8915]
[1760920254543,4.7254946,184.02,183.95,4.8909]
[1760920254743,4.7254946,184.02,183.93,2.9]
[1760920254941,4.7254946,184.0,183.93,2.9]
[1760920255140,4.7254946,183.99,183.88,7.7927]
[1760920255344,4.7254946,183.97,183.88,2.9]
[1760920255544,4.7254946,183.98,183.88,2.9]
[1760920255744,4.7254946,183.96,183.83,7.7939]
[1760920255949,4.7254946,183.94,183.83,2.9]
[1760920256343,9.78052909,183.99,183.79,8.91101842]
[1760920256344,4.7254946,183.96,183.9,4.8922]
[1760920256548,4.7254946,183.97,183.91,2.9]
[1760920257145,4.7254946,183.97,183.92,4.8917]
[1760920257346,4.7254946,183.98,183.84,2.9]
[1760920257548,4.7254946,183.99,183.84,2.9]
[1760920258048,4.7254946,183.98,183.83,8.91101842]
[1760920258239,4.7254946,183.99,183.84,2.9]
[1760920258438,4.7254946,183.99,183.92,4.8918]
[1760920258645,4.7254946,183.98,183.92,4.8918]
[1760920258841,4.7254946,183.99,183.9,2.9]
[1760920259150,4.7254946,184.0,183.94,7.7912]
[1760920259345,4.7254946,184.01,183.94,4.8912]
[1760920259653,4.7254946,184.01,183.94,7.7912]
[1760920259852,4.7254946,184.01,183.94,2.9]
[1760920260049,4.7254946,184.0,183.85,2.9]
[1760920260348,4.7254946,184.0,183.96,4.8907]
[1760920260548,4.7254946,184.03,183.97,2.9]
[1760920260741,4.7254946,184.03,183.86,2.9]
[1760920260941,4.7254946,184.0,183.9,2.9]
[1760920261144,4.7254946,184.0,183.93,4.8913]
[1760920261342,4.7254946,183.99,183.93,4.8913]
[1760920261545,4.7254946,184.01,183.93,4.8913]
[1760920262347,7.4654946,184.02,183.95,4.8909]
[1760920262748,7.4654946,184.02,183.97,4.8904]
[1760920262955,4.7254946,184.04,183.97,7.7904]
[1760920263150,4.7254946,184.03,183.93,2.9]
[1760920263348,4.7254946,184.01,183.84,2.9]
[1760920263659,4.7254946,183.99,183.88,2.9]
[1760920264551,12.3552946,184.0,183.88,2.9]
[1760920264751,12.3552946,184.0,183.89,4.8926]
[1760920265052,12.3552946,184.0,183.79,159.52121842]
[1760920265053,2.74,183.97,183.84,2.9]
[1760920265458,4.8913,183.94,183.84,2.9]
[1760920265753,6.79557761,183.93,183.8,2.9]
[1760920266050,2.74,183.93,183.8,2.9]
[1760920266247,2.74,183.97,183.8,2.9]
[1760920266454,2.74,184.01,183.83,8.91101842]
[1760920266655,4.05697507,184.0,183.84,2.9]
[1760920266950,4.05697507,184.0,183.94,4.8912]
[1760920267358,2.74,184.01,183.94,4.8912]
[1760920267855,6.79681196,184.01,183.94,4.8912]
[1760920268059,2.74,184.01,183.94,4.8912]
[1760920268246,4.05681196,184.02,183.96,4.8907]
[1760920268450,6.79681196,184.05,183.94,2.9]
[1760920268650,2.74,184.05,183.95,4.8908]
[1760920269049,6.79681196,184.05,183.95,4.8908]
[1760920269249,2.74,184.05,183.97,4.8904]
[1760920269562,2.74,184.05,183.94,2.9]
[1760920270956,4.05681196,184.07,184.0,4.8895]
[1760920271155,79.42533764,184.08,183.97,2.9]
[1760920271950,79.42533764,184.08,184.03,7.7388]
[1760920272149,2.74,184.09,184.03,2.85]
[1760920272354,6.87939286,184.13,184.05,4.8883]
[1760920272757,2.82,184.13,184.05,4.8883]
[1760920273661,2.82,184.13,184.02,4.8889]
[1760920273960,2.82,184.13,183.99,2.85]
[1760920274862,16.61731842,184.13,183.99,2.85]
[1760920275052,2.82,184.11,183.99,2.85]
[1760920275967,8.91101842,184.16,183.99,2.85]
[1760920276160,2.82,184.13,183.99,2.85]
[1760920276363,2.82,184.13,183.99,5.31]
[1760920276558,2.82,184.13,183.99,2.85]
[1760920276760,6.85902037,184.13,183.99,2.85]
[1760920277164,2.82,184.13,183.99,2.85]
[1760920277967,2.82,184.13,184.08,4.8874]
[1760920278167,2.82,184.13,184.08,7.7374]
[1760920279166,4.03548109,184.19,184.08,2.85]
[1760920279167,2.86,184.19,184.08,2.85]
[1760920279862,4.03226819,184.22,184.03,8.91101842]
[1760920279863,4.03226819,184.22,184.16,4.8854]
[1760920280064,4.7254946,184.27,184.16,4.8854]
[1760920280065,2.86,184.24,184.16,4.8854]
[1760920281865,2.86,184.24,184.18,4.8849]
[1760920282069,2.86,184.24,184.12,2.85]
[1760920282467,2.86,184.24,184.15,4.8855]
[1760920283770,2.86,184.24,184.17,4.8851]
[1760920284862,2.86,184.24,184.16,2.85]
[1760920285573,2.86,184.24,184.12,30.91]
[1760920285772,2.86,184.24,184.12,2.85]
[1760920285970,2.86,184.24,184.17,4.8851]
[1760920286272,2.86,184.28,184.16,2.85]
[1760920287173,2.86,184.28,184.19,4.8845]
[1760920287678,2.86,184.28,184.21,4.8841]
[1760920287873,8.91101842,184.29,184.21,7.7341]
[1760920288176,2.86,184.31,184.21,7.7341]
[1760920288966,8.91101842,184.3,184.18,4.8846]
[1760920289274,2.86,184.25,184.16,2.85]
[1760920289570,2.86,184.25,184.1,2.85]
[1760920290777,4.7254946,184.33,184.1,2.85]
[1760920290778,8.91101842,184.22,184.1,2.85]
[1760920290973,2.86,184.21,184.1,2.85]
[1760920291284,18.5854946,184.3,184.03,2.85]
[1760920291285,2.86,184.17,184.03,2.85]
[1760920292077,8.91101842,184.21,184.06,2.85]
[1760920292678,5.40508504,184.21,184.12,4.8863]
[1760920292873,5.40508504,184.21,184.11,2.85]
[1760920293272,2.86,184.22,184.13,4.8862]
[1760920293985,2.86,184.22,184.15,4.8855]
[1760920295480,2.86,184.22,184.12,4.8862]
[1760920296275,2.86,184.22,184.14,4.8859]
[1760920297077,2.86,184.22,184.14,7.7359]
[1760920297575,0.94510001,184.24,184.08,2.85]
[1760920297779,4.7254946,184.31,184.21,2.85]
[1760920297780,4.00165359,184.31,184.21,2.85]
[1760920297979,2.86,184.34,184.21,2.85]
[1760920298182,2.86,184.34,184.26,4.8827]
[1760920298791,2.86,184.34,184.24,2.85]
[1760920298974,2.86,184.34,184.25,4.883]
[1760920299281,5.40508504,184.32,184.22,0.2]
[1760920300076,8.26508504,184.34,184.24,4.8833]
[1760920300781,8.26508504,184.34,184.22,0.2]
[1760920300782,2.86,184.34,184.23,2.85]
[1760920301681,2.86,184.34,184.28,4.8822]
[1760920301886,77.48648045,184.35,184.26,2.85]
[1760920302286,5.40508504,184.41,184.28,2.85]
[1760920303081,19.35648953,184.42,184.28,2.85]
[1760920303082,2.86,184.42,184.28,2.85]
[1760920303588,2.86,184.42,184.35,4.8803]
[1760920304683,4.8776,184.46,184.35,4.8803]
[1760920304684,2.86,184.46,184.35,4.8803]
[1760920305990,2.86,184.42,184.33,2.85]
[1760920306590,2.86,184.42,184.24,16.84508504]
[1760920306591,2.86,184.42,184.28,2.85]
[1760920306789,2.86,184.34,184.23,111.22778474]
[1760920307390,2.86,184.34,184.23,116.11118474]
[1760920308282,5.40508504,184.35,184.26,2.8]
[1760920308683,8.29508504,184.35,184.26,2.8]
[1760920309283,8.29508504,184.35,184.27,4.8825]
[1760920309488,8.29508504,184.35,184.26,2.8]
[1760920309892,8.29508504,184.35,184.26,7.6827]
[1760920310392,5.40508504,184.39,184.26,2.8]
[1760920310595,2.89,184.4,184.28,4.8821]
[1760920311288,2.89,184.4,184.3,4.8816]
[1760920313191,6.87061737,184.4,184.3,4.8816]
[1760920313492,2.89,184.4,184.3,4.8816]
[1760920313698,2.89,184.4,184.26,47.02]
[1760920313699,7.7699,184.37,184.27,4.8823]
[1760920313891,7.7699,184.37,184.24,2.8]
[1760920314095,7.7699,184.37,184.26,4.8827]
[1760920314787,3.98039747,184.36,184.26,4.8827]
[1760920317694,2.89,184.34,184.24,2.8]
[1760920317891,6.87427616,184.34,184.24,2.8]
[1760920318192,10.13057964,184.39,184.24,2.8]
[1760920318193,4.8798,184.38,184.24,2.8]
[1760920318591,8.86671402,184.38,184.24,2.8]
[1760920319294,8.86671402,184.38,184.27,4.8825]
[1760920320592,3.98691402,184.38,184.28,2.8]
[1760920320794,2.89,184.39,184.28,2.8]
[1760920321199,2.89,184.39,184.28,49.8]
[1760920321399,2.89,184.39,184.31,4.8814]
[1760920321698,2.89,184.39,184.31,2.8]
[1760920321895,15.00887964,184.44,184.31,2.8]
[1760920321896,6.8791113,184.43,184.31,2.8]
[1760920322293,6.8791113,184.43,184.3,2.8]
[1760920322509,2.89,184.41,184.3,2.8]
[1760920322797,2.89,184.39,184.26,2.8]
[1760920323001,2.89,184.37,184.26,2.8]
[1760920323202,8.29508504,184.35,184.2,2.8]
[1760920323398,8.29508504,184.35,184.21,6.76]
[1760920323399,3.9891113,184.34,184.21,6.76]
[1760920323703,6.8791113,184.33,184.2,2.8]
[1760920323892,2.89,184.33,184.2,2.8]
[1760920324091,3.9891113,184.34,184.22,2.8]
[1760920324296,2.89,184.42,184.26,2.8]
[1760920324498,3.99675643,184.41,184.26,2.8]
[1760920324698,3.99675643,184.4,184.26,16.88]
[1760920324900,3.99675643,184.41,184.27,2.8]
[1760920325096,2.89,184.42,184.26,14.08]
[1760920325097,3.99675643,184.42,184.3,2.8]
[1760920325299,2.89,184.44,184.3,2.8]
[1760920325503,6.88646659,184.44,184.35,4.8804]
[1760920325698,6.88646659,184.44,184.3,24.58]
[1760920325893,2.89,184.42,184.3,2.8]
[1760920326093,2.89,184.4,184.3,2.8]
[1760920326600,3.99646659,184.43,184.31,2.8]
[1760920326899,2.89,184.45,184.31,2.8]
[1760920327204,2.89,184.43,184.31,2.8]
[1760920328004,7.7683,184.43,184.32,4.881]
[1760920328195,3.99646659,184.42,184.32,4.881]
[1760920328594,2.89,184.41,184.32,4.881]
[1760920329302,7.7688,184.41,184.32,4.881]
[1760920329499,3.99801467,184.4,184.32,4.881]
[1760920330409,7.7688,184.41,184.32,4.881]
[1760920330800,2.89,184.36,184.26,7.6827]
[1760920330994,2.89,184.36,184.23,110.98123236]
[1760920330995,2.89,184.36,184.22,2.8]
[1760920331200,4.8817,184.31,184.21,4.884]
[1760920331407,2.89,184.3,184.21,4.884]
[1760920331905,4.882,184.29,184.2,2.76]
[1760920332202,4.882,184.29,184.18,4.8847]
[1760920332404,4.8825,184.27,184.18,4.8847]
[1760920332798,2.9,184.26,184.18,4.8847]
[1760920332999,4.8831,184.25,184.16,2.76]
[1760920333302,2.9,184.26,184.12,2.76]
[1760920333511,2.9,184.26,184.14,4.8859]
[1760920333512,4.8836,184.23,184.14,4.8859]
[1760920333899,4.01564911,184.25,184.14,4.8859]
[1760920334100,6.91564911,184.26,184.14,4.8859]
[1760920334298,6.91564911,184.26,184.12,2.76]
[1760920334503,8.30508504,184.26,184.12,2.76]
[1760920334706,4.01564911,184.25,184.12,2.76]
[1760920335099,2.9,184.24,184.1,4.8869]
[1760920335609,2.9,184.21,184.07,7.6477]
[1760920335804,2.9,184.17,184.03,19.64]
[1760920336202,11.7974903,184.17,184.04,4.8885]
[1760920336396,4.8853,184.17,184.03,19.64]
[1760920336608,2.9,184.16,184.03,2.76]
[1760920337802,4.8858,184.15,184.03,7.6488]
[1760920338002,2.9,184.16,184.04,2.69]
[1760920338600,8.30508504,184.16,184.04,2.69]
[1760920338802,2.81,184.14,184.04,2.69]
[1760920339208,2.81,184.14,183.99,7.5799]
[1760920339409,2.81,184.12,183.99,7.5799]
[1760920340005,2.81,184.1,183.99,2.69]
[1760920340201,2.81,184.07,183.94,2.69]
[1760920340708,7.698,184.07,183.94,2.69]
[1760920340904,5.40508504,184.08,183.92,108.81485836]
[1760920341110,2.81,184.07,183.92,108.81485836]
[1760920341311,2.81,184.02,183.9,8.09508504]
[1760920342407,2.81,184.02,183.8,140.64]
[1760920342717,2.81,184.02,183.84,2.69]
[1760920342911,18.71983827,184.02,183.88,2.69]
[1760920343209,2.81,184.02,183.92,2.69]
[1760920343402,2.81,184.02,183.93,4.8913]
[1760920344009,2.81,184.09,183.96,2.69]
[1760920344612,16.39809776,184.1,184.0,2.69]
[1760920344913,2.81,184.13,184.03,4.8887]
[1760920345211,2.81,184.13,184.01,5.40508504]
[1760920345413,2.81,184.13,184.0,2.69]
[1760920345607,2.81,184.13,184.0,7.5796]
[1760920345809,2.81,184.13,184.0,2.69]
[1760920346309,8.21508504,184.18,184.02,2.69]
[1760920346507,2.81,184.18,184.02,2.69]
[1760920346715,2.81,184.18,184.06,2.69]
[1760920346915,18.97467938,184.18,184.06,2.69]
[1760920347504,21.56976442,184.18,184.0,2.69]
[1760920347711,4.8859,184.15,184.03,2.69]
[1760920348210,4.8859,184.15,184.04,4.8886]
[1760920348713,2.81,184.16,184.04,4.8886]
[1760920349112,9.37879943,184.17,183.98,2.69]
[1760920349317,2.81,184.12,183.98,2.69]
[1760920349515,2.81,184.12,184.01,2.69]
[1760920351113,2.81,184.07,183.93,7.5813]
[1760920351313,2.81,184.07,183.93,2.69]
[1760920351619,2.81,184.07,184.0,10.0]
[1760920353510,2.81,184.08,184.0,10.0]
[1760920353817,2.81,184.03,184.0,10.0]
[1760920354018,2.81,184.02,184.0,10.0]
[1760920354722,4.888,184.07,184.0,10.0]
[1760920355516,8.91082239,184.12,184.0,10.0]
[1760920355517,2.81,184.04,184.0,10.0]
[1760920356022,2.81,184.03,184.0,10.0]
[1760920356818,7.6984,184.05,184.0,10.0]
[1760920357020,4.8884,184.05,184.0,10.0]
[1760920357219,2.81,184.01,184.0,10.0]
[1760920357922,4.8897,184.0,183.92,107.88414078]
[1760920358926,4.8903,183.98,183.92,107.88414078]
[1760920359120,4.8903,183.98,183.89,2.69]
[1760920359625,8.91082239,184.04,183.82,2.69]
[1760920359626,4.8908,183.96,183.82,2.69]
[1760920360220,2.81,183.97,183.85,2.69]
[1760920361026,4.8908,183.96,183.85,2.69]
[1760920361915,4.8913,183.94,183.85,2.69]
[1760920362222,2.81,183.93,183.8,2.69]
[1760920362619,7.7017,183.93,183.8,2.69]
[1760920363015,7.7017,183.93,183.82,4.8944]
[1760920363215,2.81,183.93,183.8,2.69]
[1760920364223,2.81,183.93,183.85,4.8936]
[1760920364421,2.81,183.93,183.85,7.5836]
[1760920364628,4.8907,183.97,183.85,7.5836]
[1760920365127,4.8911,183.95,183.85,7.5836]
[1760920366230,2.81,183.94,183.85,7.5836]
[1760920366727,2.81,183.98,183.85,2.69]
[1760920367223,2.91,183.96,183.85,2.69]
[1760920367425,3.9646981,184.01,183.85,2.69]
[1760920367626,4.8898,184.0,183.85,2.69]
[1760920367826,2.91,184.01,183.89,2.71]
[1760920368329,2.91,183.97,183.89,2.71]
[1760920369229,4.8908,183.96,183.89,2.71]
[1760920369932,4.8901,183.99,183.89,7.6025]
[1760920370525,2.91,184.02,183.79,22.12]
[1760920370526,2.91,184.02,183.92,2.71]
[1760920370835,11.82082239,184.03,183.85,2.71]
[1760920371033,2.91,183.97,183.85,2.71]
[1760920371625,4.8908,183.96,183.87,4.893]
[1760920371933,2.91,183.97,183.85,2.71]
[1760920372324,2.91,183.97,183.88,4.8928]
[1760920372529,2.88,184.02,183.88,2.9]
[1760920374035,7.7694,184.02,183.92,4.8917]
[1760920374234,3.98441474,184.01,183.92,4.8917]
[1760920374828,3.98441474,184.01,183.91,2.9]
[1760920375234,3.98441474,184.0,183.91,2.9]
[1760920375431,3.98441474,183.99,183.91,2.9]
[1760920375633,3.98441474,183.98,183.91,2.9]
[1760920375831,3.98441474,184.01,183.91,2.9]
[1760920376032,3.98441474,184.0,183.91,2.9]
[1760920376233,3.98441474,183.99,183.91,2.9]
[1760920376430,3.98441474,183.98,183.91,2.9]
[1760920376631,3.98441474,183.97,183.91,2.9]
[1760920376832,3.98441474,184.01,183.91,2.9]
[1760920377036,3.98441474,184.0,183.93,4.8915]
[1760920377231,3.98441474,183.99,183.93,4.8915]
[1760920377435,3.98441474,183.98,183.94,2.9]
[1760920377739,7.6054946,184.02,183.93,4.8915]
[1760920377740,4.01536302,183.97,183.93,4.8915]
[1760920377927,4.01536302,183.96,183.93,4.8915]
[1760920378132,4.7254946,184.0,183.93,4.8915]
[1760920378332,4.01952504,183.99,183.93,4.8915]
[1760920378538,4.01952504,183.98,183.93,7.7915]
[1760920378738,4.01952504,183.97,183.93,7.7915]
[1760920378938,4.7254946,184.01,183.93,7.7915]
[1760920378939,4.7254946,184.01,183.94,2.9]
[1760920379139,4.01979122,184.0,183.94,2.9]
[1760920379338,4.01979122,183.99,183.94,2.9]
[1760920379639,4.01979122,183.98,183.94,2.9]
[1760920379841,4.01979122,183.97,183.94,2.9]
[1760920380038,4.01979122,183.96,183.89,2.9]
[1760920380243,4.7254946,184.01,183.89,2.9]
[1760920380541,4.02617756,184.0,183.89,2.9]
[1760920380740,8.75167216,183.99,183.89,2.9]
[1760920380933,4.02617756,183.98,183.89,2.9]
[1760920381131,4.02617756,183.97,183.89,2.9]
[1760920381330,6.90617756,183.96,183.79,2.9]
[1760920381544,8.75167216,183.95,183.85,2.9]
[1760920381733,4.02617756,183.94,183.85,2.9]
[1760920381929,4.7254946,183.98,183.85,2.9]
[1760920382146,4.02642921,183.97,183.85,2.9]
[1760920382441,4.02642921,183.96,183.79,2.9]
[1760920382639,4.02642921,183.95,183.81,2.9]
[1760920382838,4.02642921,183.94,183.81,2.9]
[1760920383043,2.88,183.97,183.92,4.8917]
[1760920383340,4.02701261,183.96,183.92,7.7917]
[1760920383639,4.02701261,183.95,183.92,4.8917]
[1760920383843,2.88,183.97,183.89,7.7924]
[1760920383844,4.02701261,183.94,183.89,7.7924]
[1760920384045,4.02701261,183.93,183.89,7.7924]
[1760920384249,4.02701261,183.92,183.89,7.7924]
[1760920384433,7.6054946,183.97,183.89,7.7924]
[1760920384638,4.03033672,183.96,183.89,7.7924]
[1760920384837,4.03033672,183.95,183.9,7.7921]
[1760920385043,4.03033672,183.94,183.9,2.9]
[1760920385248,4.03033672,183.93,183.86,4.8931]
[1760920385539,4.03033672,183.92,183.81,2.9]
[1760920385734,6.91033672,183.91,183.84,4.8938]
[1760920385940,7.6054946,183.95,183.84,2.9]
[1760920386135,4.0319937,183.94,183.84,2.9]
[1760920386335,4.0319937,183.93,183.84,2.9]
[1760920386639,4.0319937,183.92,183.84,2.9]
[1760920386839,4.03187284,183.94,183.88,4.8926]
[1760920387040,2.88,183.95,183.88,4.8926]